[Event "South Island Championships 2023"]
[Site "Oamaru, New Zealand"]
[Date "????.??.??"]
[Round "5.6"]
[White "Zhang, Kendrick Botong"]
[Black "Wang, Justin Zhide"]
[Result "1-0"]
[TimeControl "90 + 30"]
[WhiteFideId "4307704"]
[BlackFideId "4312830"]
[WhiteElo "2067"]
[BlackElo "1849"]

1. e4 {[%clk 01:30:57]} {[%emt 00:00:03]} e6 {[%clk 01:30:56]} {[%emt
00:00:05]} 2. d4 {[%clk 01:31:22]} {[%emt 00:00:05]} d5 {[%clk 01:31:23]}
{[%emt 00:00:03]} 3. Nc3 {[%clk 01:31:46]} {[%emt 00:00:06]} Nf6 {[%clk
01:31:51]} {[%emt 00:00:03]} 4. e5 {[%clk 01:32:10]} {[%emt 00:00:06]} Nfd7
{[%clk 01:32:17]} {[%emt 00:00:03]} 5. f4 {[%clk 01:32:32]} {[%emt 00:00:07]}
c5 {[%clk 01:32:44]} {[%emt 00:00:04]} 6. Nf3 {[%clk 01:32:56]} {[%emt
00:00:05]} Nc6 {[%clk 01:33:12]} {[%emt 00:00:04]} 7. Be3 {[%clk 01:33:16]}
{[%emt 00:00:09]} a6 {[%clk 01:33:38]} {[%emt 00:00:04]} 8. Qd2 {[%clk
01:33:36]} {[%emt 00:00:09]} b5 {[%clk 01:34:04]} {[%emt 00:00:05]} 9. a3
{[%clk 01:33:50]} {[%emt 00:00:15]} Qb6 {[%clk 01:34:31]} {[%emt 00:00:04]} 10.
Ne2 {[%clk 01:33:54]} {[%emt 00:00:26]} Bb7 {[%clk 01:33:39]} {[%emt 00:01:22]}
11. dxc5 {[%clk 01:32:29]} {[%emt 00:01:54]} Bxc5 {[%clk 01:34:01]} {[%emt
00:00:10]} 12. Ned4 {[%clk 01:25:16]} {[%emt 00:07:42]} Nxd4 {[%clk 01:28:53]}
{[%emt 00:05:38]} 13. Bxd4 {[%clk 01:15:48]} {[%emt 00:09:57]} Bxd4 {[%clk
01:15:08]} {[%emt 00:14:15]} 14. Nxd4 {[%clk 01:16:03]} {[%emt 00:00:14]} Rc8
{[%clk 01:15:33]} {[%emt 00:00:06]} 15. Be2 {[%clk 00:55:56]} {[%emt 00:20:37]}
Nc5 {[%clk 01:06:48]} {[%emt 00:09:15]} 16. O-O {[%clk 00:46:56]} {[%emt
00:09:29]} O-O {[%clk 01:07:08]} {[%emt 00:00:11]} 17. Rad1 {[%clk 00:36:36]}
{[%emt 00:10:50]} Na4 {[%clk 01:06:56]} {[%emt 00:00:42]} 18. c3 {[%clk
00:33:55]} {[%emt 00:03:11]} Nc5 {[%clk 01:06:53]} {[%emt 00:00:33]} 19. Bg4
{[%clk 00:30:51]} {[%emt 00:03:33]} Ne4 {[%clk 01:03:31]} {[%emt 00:03:53]} 20.
Qe3 {[%clk 00:30:44]} {[%emt 00:00:37]} f5 {[%clk 00:55:18]} {[%emt 00:08:43]}
21. Nxf5 {[%clk 00:26:51]} {[%emt 00:04:22]} Qxe3+ {[%clk 00:54:09]} {[%emt
00:01:38]} 22. Nxe3 {[%clk 00:27:07]} {[%emt 00:00:15]} Rce8 {[%clk 00:52:57]}
{[%emt 00:01:43]} 23. f5 {[%clk 00:16:23]} {[%emt 00:11:14]} exf5 {[%clk
00:36:30]} {[%emt 00:16:57]} 24. Bxf5 {[%clk 00:16:45]} {[%emt 00:00:07]} g6
{[%clk 00:36:49]} {[%emt 00:00:12]} 25. Bxe4 {[%clk 00:16:11]} {[%emt
00:01:04]} Rxf1+ {[%clk 00:34:03]} {[%emt 00:03:16]} 26. Kxf1 {[%clk 00:16:32]}
{[%emt 00:00:08]} dxe4 {[%emt 00:03:45]} 27. Ng4 {[%clk 00:08:11]} {[%emt
00:05:23]} Re7 {[%clk 00:31:24]} {[%emt 00:03:23]} 28. Nf6+ {[%clk 00:05:21]}
{[%emt 00:03:20]} Kg7 {[%clk 00:31:14]} {[%emt 00:00:39]} 29. Rd7 {[%clk
00:04:58]} {[%emt 00:00:53]} Kf7 {[%clk 00:26:45]} {[%emt 00:04:59]} 30. Rxe7+
{[%clk 00:02:44]} {[%emt 00:02:45]} Kxe7 {[%emt 00:00:15]} 31. Nxh7 {[%clk
00:03:06]} Ke6 {[%clk 00:26:54]} {[%emt 00:00:44]} 32. Nf8+ {[%clk 00:03:28]}
{[%emt 00:00:06]} Kxe5 {[%clk 00:27:06]} {[%emt 00:00:18]} 33. Nxg6+ {[%clk
00:03:51]} {[%emt 00:00:08]} Kf5 {[%clk 00:27:15]} {[%emt 00:00:20]} 34. Nh4+
{[%clk 00:04:15]} {[%emt 00:00:07]} Kg5 {[%clk 00:26:56]} {[%emt 00:00:49]} 35.
g3 {[%clk 00:04:35]} {[%emt 00:00:10]} Kg4 {[%clk 00:24:42]} {[%emt 00:02:44]}
36. Kf2 {[%clk 00:03:54]} {[%emt 00:01:10]} Kh3 {[%clk 00:24:47]} {[%emt
00:00:25]} 37. Nf5 {[%clk 00:03:52]} {[%emt 00:00:32]} Kxh2 {[%clk 00:24:53]}
{[%emt 00:00:23]} 38. Ke3 {[%clk 00:03:54]} {[%emt 00:00:29]} Kh3 {[%clk
00:24:10]} {[%emt 00:01:13]} 39. Kf4 {[%clk 00:02:24]} {[%emt 00:02:00]} Bd5
{[%clk 00:23:20]} {[%emt 00:01:20]} 40. g4 {[%clk 00:02:30]} {[%emt 00:00:25]}
Be6 {[%clk 00:23:33]} {[%emt 00:00:16]} 41. Ne3 {[%clk 00:02:50]} {[%emt
00:00:10]} Kh2 {[%clk 00:22:41]} {[%emt 00:01:22]} 42. Kxe4 {[%clk 00:02:58]}
{[%emt 00:00:21]} Kg3 {[%clk 00:23:01]} {[%emt 00:00:08]} 43. g5 {[%clk
00:03:25]} {[%emt 00:00:07]} Kf2 {[%clk 00:23:24]} {[%emt 00:00:07]} 44. Nd5
{[%clk 00:03:27]} {[%emt 00:00:28]} Ke1 {[%clk 00:23:22]} {[%emt 00:00:32]} 45.
Nc7 {[%clk 00:03:50]} {[%emt 00:00:06]} Bg8 {[%clk 00:23:49]} {[%emt 00:00:04]}
46. Nxa6 {[%clk 00:03:45]} {[%emt 00:00:35]} Kd2 {[%clk 00:24:14]} {[%emt
00:00:04]} 47. Nc7 {[%clk 00:03:44]} {[%emt 00:00:31]} Kc2 {[%clk 00:24:23]}
{[%emt 00:00:22]} 48. Nxb5 {[%clk 00:04:08]} {[%emt 00:00:05]} Kxb2 {[%clk
00:24:49]} {[%emt 00:00:04]} 49. Kd4 {[%clk 00:04:29]} {[%emt 00:00:10]} Kb3
{[%clk 00:25:01]} {[%emt 00:00:18]} 50. g6 {[%clk 00:04:37]} {[%emt 00:00:21]}
Be6 {[%clk 00:24:53]} {[%emt 00:00:38]} 51. g7 {[%clk 00:04:54]} {[%emt
00:00:13]} Bg8 {[%clk 00:25:15]} {[%emt 00:00:08]} 52. Kc5 {[%clk 00:04:07]}
{[%emt 00:01:18]} Ka4 {[%clk 00:25:33]} {[%emt 00:00:12]} 53. c4 {[%clk
00:03:06]} {[%emt 00:01:31]} Ka5 {[%clk 00:25:15]} {[%emt 00:00:47]} 54. Nc3
{[%clk 00:03:29]} {[%emt 00:00:07]} Ka6 {[%clk 00:25:40]} {[%emt 00:00:06]} 55.
Kb4 {[%clk 00:03:52]} {[%emt 00:00:07]} Kb6 {[%clk 00:25:31]} {[%emt 00:00:39]}
56. Ne4 {[%clk 00:04:14]} {[%emt 00:00:51]} 1-0

[Event "South Island Championships 2023"]
[Site "Oamaru, New Zealand"]
[Date "????.??.??"]
[Round "6.4"]
[White "Johnson, Quentin J F"]
[Black "Liu, William Rui"]
[Result "1/2-1/2"]
[TimeControl "90 + 30"]
[WhiteFideId "4301480"]
[BlackFideId "4313593"]
[WhiteElo "2089"]
[BlackElo "2094"]

1. d4 {[%clk 01:26:23]} {[%emt 00:04:37]} Nf6 {[%clk 01:30:52]} {[%emt
00:00:08]} 2. c4 {[%clk 01:26:50]} {[%emt 00:00:04]} e6 {[%clk 01:31:16]}
{[%emt 00:00:04]} 3. Nc3 {[%clk 01:27:16]} {[%emt 00:00:05]} Bb4 {[%clk
01:31:40]} {[%emt 00:00:06]} 4. e3 {[%clk 01:27:21]} {[%emt 00:00:25]} O-O
{[%clk 01:31:49]} {[%emt 00:00:20]} 5. Nge2 {[%clk 01:27:45]} {[%emt 00:00:07]}
d5 {[%clk 01:31:28]} {[%emt 00:00:52]} 6. a3 {[%clk 01:27:43]} {[%emt
00:00:32]} Bxc3+ {[%clk 01:31:19]} {[%emt 00:00:38]} 7. Nxc3 {[%clk 01:28:07]}
{[%emt 00:00:06]} b6 {[%clk 01:31:38]} {[%emt 00:00:11]} 8. Bd3 {[%clk
01:26:00]} {[%emt 00:02:37]} Bb7 {[%clk 01:31:22]} {[%emt 00:00:47]} 9. O-O
{[%clk 01:26:18]} {[%emt 00:00:11]} Nbd7 {[%clk 01:31:20]} {[%emt 00:00:33]} 10.
cxd5 {[%clk 01:22:48]} {[%emt 00:03:59]} exd5 {[%clk 01:31:30]} {[%emt
00:00:20]} 11. b4 {[%clk 01:22:47]} {[%emt 00:00:31]} c5 {[%clk 01:26:45]}
{[%emt 00:05:15]} 12. bxc5 {[%clk 01:23:02]} {[%emt 00:00:15]} bxc5 {[%clk
01:27:10]} {[%emt 00:00:06]} 13. dxc5 {[%clk 01:23:27]} {[%emt 00:00:04]} Nxc5
{[%clk 01:27:30]} {[%emt 00:00:11]} 14. Be2 {[%clk 01:22:09]} {[%emt 00:01:47]}
Nce4 {[%clk 01:25:38]} {[%emt 00:02:22]} 15. Bb2 {[%clk 01:22:14]} {[%emt
00:00:25]} Rc8 {[%clk 01:25:29]} {[%emt 00:00:39]} 16. Qd4 {[%clk 01:20:25]}
{[%emt 00:02:19]} a5 {[%clk 00:58:56]} {[%emt 00:27:03]} 17. Rfd1 {[%clk
01:14:27]} {[%emt 00:06:27]} Qe7 {[%clk 00:58:17]} {[%emt 00:01:10]} 18. Nxe4
{[%clk 01:01:39]} {[%emt 00:13:18]} dxe4 {[%clk 00:56:30]} {[%emt 00:02:18]} 19.
Qd6 {[%clk 01:01:54]} {[%emt 00:00:14]} Qxd6 {[%clk 00:56:05]} {[%emt
00:00:56]} 20. Rxd6 {[%clk 01:02:20]} {[%emt 00:00:04]} Rc2 {[%clk 00:53:23]}
{[%emt 00:03:11]} 21. Bxf6 {[%clk 01:02:38]} {[%emt 00:00:11]} Rxe2 {[%clk
00:53:45]} {[%emt 00:00:10]} 22. Be7 {[%clk 01:01:04]} {[%emt 00:02:03]} Rc8
{[%clk 00:51:33]} {[%emt 00:02:42]} 23. Rb1 {[%clk 00:58:51]} {[%emt 00:02:43]}
Rb2 {[%clk 00:43:11]} {[%emt 00:08:52]} 24. Rbd1 {[%clk 00:59:05]} {[%emt
00:00:16]} h6 {[%clk 00:42:27]} {[%emt 00:01:14]} 25. Rd8+ {[%clk 00:55:19]}
{[%emt 00:04:15]} Kh7 {[%clk 00:41:23]} {[%emt 00:01:35]} 26. Rxc8 {[%clk
00:55:39]} {[%emt 00:00:09]} Bxc8 {[%clk 00:41:48]} {[%emt 00:00:06]} 27. Bd8
{[%clk 00:55:20]} {[%emt 00:00:49]} Ra2 {[%clk 00:41:39]} {[%emt 00:00:39]} 28.
Bxa5 {[%clk 00:55:43]} {[%emt 00:00:07]} Rxa3 {[%clk 00:42:05]} {[%emt
00:00:05]} 29. Bb4 {[%clk 00:55:02]} {[%emt 00:01:10]} 1/2-1/2

[Event "South Island Championships 2023"]
[Site "Oamaru, New Zealand"]
[Date "????.??.??"]
[Round "6.11"]
[White "Gold, Hamish R"]
[Black "Lee, Dylan E S"]
[Result "1-0"]
[TimeControl "90 + 30"]
[WhiteFideId "4301579"]
[BlackFideId "4310098"]
[WhiteElo "1758"]
[BlackElo "1192"]

1. e4 {[%clk 01:30:55]} {[%emt 00:00:05]} c6 {[%clk 01:30:57]} {[%emt
00:00:05]} 2. Ne2 {[%clk 01:31:05]} {[%emt 00:00:19]} d5 {[%clk 01:31:04]}
{[%emt 00:00:23]} 3. e5 {[%clk 01:31:13]} {[%emt 00:00:21]} Bg4 {[%clk
01:30:34]} {[%emt 00:01:00]} 4. h3 {[%clk 01:30:36]} {[%emt 00:01:08]} Bf5
{[%clk 01:31:00]} {[%emt 00:00:04]} 5. Nd4 {[%clk 01:30:48]} {[%emt 00:00:19]}
e6 {[%clk 01:30:34]} {[%emt 00:00:56]} 6. Nxf5 {[%clk 01:29:26]} {[%emt
00:01:51]} exf5 {[%clk 01:30:59]} {[%emt 00:00:05]} 7. d4 {[%clk 01:29:20]}
{[%emt 00:00:35]} Nd7 {[%clk 01:30:55]} {[%emt 00:00:36]} 8. Bd3 {[%clk
01:29:13]} {[%emt 00:00:36]} g6 {[%clk 01:31:12]} {[%emt 00:00:13]} 9. O-O
{[%clk 01:29:16]} {[%emt 00:00:27]} Bg7 {[%clk 01:31:37]} {[%emt 00:00:05]} 10.
Re1 {[%clk 01:28:31]} {[%emt 00:01:14]} Qe7 {[%clk 01:31:48]} {[%emt 00:00:20]}
11. c3 {[%clk 01:28:02]} {[%emt 00:00:58]} O-O-O {[%clk 01:31:58]} {[%emt
00:00:21]} 12. a4 {[%clk 01:27:45]} {[%emt 00:00:47]} f6 {[%clk 01:31:40]}
{[%emt 00:00:48]} 13. f4 {[%clk 01:24:19]} {[%emt 00:03:55]} Nh6 {[%clk
01:29:40]} {[%emt 00:02:31]} 14. b4 {[%clk 01:23:59]} {[%emt 00:00:49]} Nf8
{[%clk 01:29:37]} {[%emt 00:00:33]} 15. b5 {[%clk 01:23:36]} {[%emt 00:00:54]}
Ne6 {[%clk 01:29:46]} {[%emt 00:00:21]} 16. bxc6 {[%clk 01:23:08]} {[%emt
00:00:57]} bxc6 {[%clk 01:30:11]} {[%emt 00:00:06]} 17. Ra2 {[%clk 01:22:47]}
{[%emt 00:00:51]} Kc7 {[%clk 01:30:31]} {[%emt 00:00:10]} 18. Ba3 {[%clk
01:22:33]} {[%emt 00:00:43]} Qf7 {[%clk 01:30:55]} {[%emt 00:00:06]} 19. Bd6+
{[%clk 01:22:42]} {[%emt 00:00:21]} Rxd6 {[%clk 01:31:21]} {[%emt 00:00:05]} 20.
exd6+ {[%clk 01:22:54]} {[%emt 00:00:18]} Kxd6 {[%clk 01:31:47]} {[%emt
00:00:04]} 21. Qc1 {[%clk 01:22:30]} {[%emt 00:00:53]} g5 {[%clk 01:31:07]}
{[%emt 00:01:10]} 22. Qa3+ {[%clk 01:22:20]} {[%emt 00:00:40]} Kd7 {[%clk
01:31:23]} {[%emt 00:00:16]} 23. Rb2 {[%clk 01:22:12]} {[%emt 00:00:37]} Re8
{[%clk 01:31:29]} {[%emt 00:00:25]} 24. a5 {[%clk 01:17:07]} {[%emt 00:05:34]}
g4 {[%clk 01:30:08]} {[%emt 00:01:51]} 25. hxg4 {[%clk 01:16:11]} {[%emt
00:01:25]} Nxg4 {[%clk 01:30:21]} {[%emt 00:00:17]} 26. Bxf5 {[%clk 01:16:12]}
{[%emt 00:00:29]} Qh5 {[%clk 01:30:00]} {[%emt 00:00:52]} 27. Bxg4 {[%clk
01:05:59]} {[%emt 00:10:42]} Qxg4 {[%clk 01:30:13]} {[%emt 00:00:18]} 28. Rb7+
{[%clk 01:06:19]} {[%emt 00:00:10]} Kc8 {[%clk 01:29:01]} {[%emt 00:01:42]} 29.
Qb3 {[%clk 01:05:53]} {[%emt 00:00:55]} Qg3 {[%clk 01:28:42]} {[%emt 00:00:50]}
30. Rb8+ {[%clk 01:01:34]} {[%emt 00:04:49]} Kd7 {[%clk 01:29:03]} {[%emt
00:00:09]} 31. Qb7+ {[%clk 01:00:29]} {[%emt 00:01:34]} Kd6 {[%clk 01:29:00]}
{[%emt 00:00:34]} 32. Rxe6+ {[%clk 01:00:05]} {[%emt 00:00:54]} Kxe6 {[%clk
01:29:11]} {[%emt 00:00:19]} 33. Rxe8+ {[%clk 00:57:44]} {[%emt 00:02:50]} Kf5
{[%clk 01:29:34]} {[%emt 00:00:07]} 34. Qd7+ {[%clk 00:57:33]} {[%emt
00:00:40]} Kg6 {[%clk 01:30:00]} {[%emt 00:00:06]} 35. f5+ {[%clk 00:56:59]}
{[%emt 00:01:03]} Kh6 {[%clk 01:30:21]} {[%emt 00:00:09]} 36. Qe6 {[%clk
00:56:37]} {[%emt 00:00:52]} Qc7 {[%clk 01:29:55]} {[%emt 00:00:57]} 37. Qe3+
{[%clk 00:56:31]} {[%emt 00:00:35]} Kh5 {[%clk 01:30:18]} {[%emt 00:00:09]} 38.
Re7 {[%clk 00:56:28]} {[%emt 00:00:32]} Qb8 {[%clk 01:30:32]} {[%emt 00:00:16]}
39. Nd2 {[%clk 00:56:40]} {[%emt 00:00:17]} Qf8 {[%clk 01:30:03]} {[%emt
00:01:00]} 40. Qh3+ {[%clk 00:56:22]} {[%emt 00:00:48]} Kg5 {[%clk 01:30:27]}
{[%emt 00:00:07]} 41. Re3 {[%clk 00:56:23]} {[%emt 00:00:24]} Bh6 {[%clk
01:30:01]} {[%emt 00:01:00]} 42. Rg3+ {[%clk 00:55:19]} {[%emt 00:01:33]} Kf4
{[%clk 01:30:19]} {[%emt 00:00:13]} 43. Rg4+ {[%clk 00:54:54]} {[%emt
00:00:53]} Kxf5 {[%clk 01:30:38]} {[%emt 00:00:13]} 44. Rg8+ {[%clk 00:55:14]}
{[%emt 00:00:09]} 1-0

[Event "South Island Championships 2023"]
[Site "Oamaru, New Zealand"]
[Date "????.??.??"]
[Round "6.5"]
[White "Christie, Richie"]
[Black "Familton, Gregory"]
[Result "1-0"]
[TimeControl "90 + 30"]
[WhiteFideId "4307470"]
[BlackFideId "4317190"]
[WhiteElo "1927"]
[BlackElo "1751"]

1. d4 {[%clk 01:30:59]} Nf6 {[%clk 01:30:45]} {[%emt 00:00:15]} 2. Bf4 {[%clk
01:30:43]} {[%emt 00:00:46]} d5 {[%clk 01:30:43]} {[%emt 00:00:33]} 3. Nc3
{[%clk 01:30:24]} {[%emt 00:00:49]} c5 {[%clk 01:30:56]} {[%emt 00:00:17]} 4.
e4 {[%clk 01:30:51]} {[%emt 00:00:04]} Nxe4 {[%clk 01:30:58]} {[%emt 00:00:27]}
5. Nxe4 {[%clk 01:30:52]} {[%emt 00:00:29]} dxe4 {[%clk 01:31:20]} {[%emt
00:00:08]} 6. dxc5 {[%clk 01:31:16]} {[%emt 00:00:06]} Qa5+ {[%clk 01:31:14]}
{[%emt 00:00:36]} 7. c3 {[%clk 01:31:36]} {[%emt 00:00:10]} Qxc5 {[%clk
01:31:00]} {[%emt 00:00:44]} 8. Qa4+ {[%clk 01:32:01]} {[%emt 00:00:05]} Nc6
{[%clk 01:31:08]} {[%emt 00:00:21]} 9. Qxe4 {[%clk 01:32:29]} {[%emt 00:00:02]}
g6 {[%clk 01:30:36]} {[%emt 00:01:02]} 10. Nf3 {[%clk 01:26:15]} {[%emt
00:06:45]} Bg7 {[%clk 01:30:51]} {[%emt 00:00:15]} 11. Rd1 {[%clk 01:20:12]}
{[%emt 00:06:33]} Bf5 {[%clk 01:26:17]} {[%emt 00:05:02]} 12. Qa4 {[%clk
01:19:03]} {[%emt 00:01:41]} O-O {[%clk 01:22:40]} {[%emt 00:04:06]} 13. Be3
{[%clk 01:16:40]} {[%emt 00:02:54]} Qa5 {[%clk 01:21:26]} {[%emt 00:01:44]} 14.
Qxa5 {[%clk 01:14:28]} {[%emt 00:02:42]} Nxa5 {[%clk 01:21:45]} {[%emt
00:00:11]} 15. Bb5 {[%clk 01:10:38]} {[%emt 00:04:20]} a6 {[%clk 01:15:50]}
{[%emt 00:06:25]} 16. Be2 {[%clk 01:09:35]} {[%emt 00:01:34]} Be6 {[%clk
01:14:10]} {[%emt 00:02:08]} 17. O-O {[%clk 01:07:50]} {[%emt 00:02:17]} Nc4
{[%clk 01:07:26]} {[%emt 00:07:13]} 18. Bc1 {[%clk 01:07:19]} {[%emt 00:01:01]}
Nd6 {[%clk 01:02:28]} {[%emt 00:05:28]} 19. Bf4 {[%clk 01:04:45]} {[%emt
00:03:04]} Bxa2 {[%clk 00:56:15]} {[%emt 00:06:44]} 20. Bxd6 {[%clk 01:03:04]}
{[%emt 00:02:10]} exd6 {[%clk 00:56:35]} {[%emt 00:00:10]} 21. Rxd6 {[%clk
01:02:39]} {[%emt 00:00:56]} Rfe8 {[%clk 00:55:01]} {[%emt 00:02:03]} 22. Re1
{[%clk 00:59:58]} {[%emt 00:03:12]} Re7 {[%clk 00:51:12]} {[%emt 00:04:18]} 23.
Kf1 {[%clk 00:58:02]} {[%emt 00:02:26]} Rae8 {[%clk 00:45:57]} {[%emt
00:05:28]} 24. Bd3 {[%clk 00:57:48]} {[%emt 00:01:02]} Be6 {[%clk 00:39:00]}
{[%emt 00:07:26]} 25. Ng5 {[%clk 00:51:20]} {[%emt 00:06:59]} Rd7 {[%clk
00:35:50]} {[%emt 00:03:39]} 26. Rexe6 {[%clk 00:50:17]} {[%emt 00:01:33]} Red8
{[%clk 00:33:15]} {[%emt 00:03:05]} 27. Rxd7 {[%clk 00:50:38]} {[%emt
00:00:10]} Rxd7 {[%clk 00:33:44]} 28. Re8+ {[%clk 00:51:01]} {[%emt 00:00:06]}
Bf8 {[%clk 00:34:10]} {[%emt 00:00:04]} 29. Bc4 {[%clk 00:51:21]} {[%emt
00:00:11]} Kg7 {[%clk 00:32:16]} {[%emt 00:02:23]} 30. Ke2 {[%clk 00:50:05]}
{[%emt 00:01:47]} h6 {[%clk 00:30:21]} {[%emt 00:02:25]} 31. Nxf7 {[%clk
00:48:42]} {[%emt 00:01:53]} Re7+ {[%clk 00:23:37]} {[%emt 00:07:13]} 32. Rxe7
{[%clk 00:49:01]} {[%emt 00:00:11]} Bxe7 {[%clk 00:24:04]} {[%emt 00:00:03]} 33.
Ne5 {[%clk 00:48:46]} {[%emt 00:00:45]} a5 {[%clk 00:23:49]} {[%emt 00:00:45]}
34. Bd3 {[%clk 00:48:45]} {[%emt 00:00:32]} g5 {[%clk 00:24:05]} {[%emt
00:00:14]} 35. Kf3 {[%clk 00:49:12]} {[%emt 00:00:02]} b6 {[%clk 00:20:55]}
{[%emt 00:03:40]} 36. Ke4 {[%clk 00:49:17]} {[%emt 00:00:26]} Bc5 {[%clk
00:19:06]} {[%emt 00:02:18]} 37. f3 {[%clk 00:49:30]} {[%emt 00:00:17]} a4
{[%clk 00:18:15]} {[%emt 00:01:22]} 38. Bc4 {[%clk 00:48:43]} {[%emt 00:01:16]}
h5 {[%clk 00:17:16]} {[%emt 00:01:30]} 39. Bb5 {[%clk 00:48:47]} {[%emt
00:00:26]} a3 {[%clk 00:17:40]} {[%emt 00:00:06]} 40. bxa3 {[%clk 00:49:16]}
Bxa3 {[%clk 00:17:45]} {[%emt 00:00:25]} 41. Nd7 {[%clk 00:49:43]} {[%emt
00:00:03]} Bd6 {[%clk 00:17:36]} {[%emt 00:00:39]} 42. h3 {[%clk 00:49:43]}
{[%emt 00:00:30]} Bc7 {[%clk 00:17:59]} {[%emt 00:00:07]} 43. Kd5 {[%clk
00:49:57]} {[%emt 00:00:15]} Kg6 {[%clk 00:17:58]} {[%emt 00:00:31]} 44. Bd3+
{[%clk 00:50:12]} {[%emt 00:00:14]} Kf7 {[%clk 00:17:58]} {[%emt 00:00:31]} 45.
Ne5+ {[%clk 00:49:49]} {[%emt 00:00:53]} Kf6 {[%clk 00:17:27]} {[%emt
00:01:01]} 46. Nc4 {[%clk 00:49:58]} {[%emt 00:00:21]} b5 {[%clk 00:15:54]}
{[%emt 00:02:03]} 47. Nd2 {[%clk 00:49:22]} {[%emt 00:01:07]} Ba5 {[%clk
00:16:06]} {[%emt 00:00:18]} 48. Bxb5 {[%clk 00:48:33]} {[%emt 00:01:19]} Bxc3
{[%clk 00:16:24]} {[%emt 00:00:12]} 49. Ne4+ {[%clk 00:49:01]} {[%emt
00:00:01]} 1-0

[Event "South Island Championships 2023"]
[Site "Oamaru, New Zealand"]
[Date "????.??.??"]
[Round "6.6"]
[White "Coleman, Phil"]
[Black "Ong, Rommel"]
[Result "0-1"]
[TimeControl "90 + 30"]
[WhiteFideId "4319443"]
[BlackFideId "5259630"]
[WhiteElo "1872"]
[BlackElo "1852"]

1. e4 {[%clk 01:30:55]} {[%emt 00:00:05]} c5 {[%clk 01:30:49]} {[%emt
00:00:12]} 2. Nf3 {[%clk 01:31:14]} {[%emt 00:00:11]} d6 {[%clk 01:31:15]}
{[%emt 00:00:04]} 3. d4 {[%clk 01:31:36]} {[%emt 00:00:08]} cxd4 {[%clk
01:31:44]} {[%emt 00:00:01]} 4. Nxd4 {[%clk 01:31:55]} {[%emt 00:00:11]} Nf6
{[%clk 01:32:10]} {[%emt 00:00:04]} 5. Nc3 {[%clk 01:32:10]} {[%emt 00:00:15]}
a6 {[%clk 01:32:34]} {[%emt 00:00:06]} 6. Bd3 {[%clk 01:30:32]} {[%emt
00:02:07]} g6 {[%clk 01:30:18]} {[%emt 00:02:47]} 7. f3 {[%clk 01:28:00]}
{[%emt 00:03:02]} Bg7 {[%clk 01:30:42]} {[%emt 00:00:06]} 8. Be3 {[%clk
01:27:00]} {[%emt 00:01:30]} O-O {[%clk 01:30:50]} {[%emt 00:00:21]} 9. Qd2
{[%clk 01:27:22]} {[%emt 00:00:08]} Re8 {[%clk 01:31:13]} {[%emt 00:00:07]} 10.
h4 {[%clk 01:26:42]} {[%emt 00:01:10]} h5 {[%clk 01:31:35]} {[%emt 00:00:09]}
11. O-O-O {[%clk 01:26:38]} {[%emt 00:00:34]} Nc6 {[%clk 01:30:30]} {[%emt
00:01:36]} 12. Nb3 {[%clk 01:24:01]} {[%emt 00:03:07]} Ne5 {[%clk 01:30:25]}
{[%emt 00:00:34]} 13. Rdg1 {[%clk 01:21:35]} {[%emt 00:02:55]} Be6 {[%clk
01:30:27]} {[%emt 00:00:29]} 14. Nd4 {[%clk 01:20:07]} {[%emt 00:01:58]} Bd7
{[%clk 01:29:59]} {[%emt 00:00:58]} 15. Be2 {[%clk 01:19:10]} {[%emt 00:01:27]}
b5 {[%clk 01:29:01]} {[%emt 00:01:28]} 16. f4 {[%clk 01:17:48]} {[%emt
00:01:52]} b4 {[%clk 01:17:51]} {[%emt 00:11:41]} 17. fxe5 {[%clk 01:13:29]}
{[%emt 00:04:48]} bxc3 {[%clk 01:15:00]} {[%emt 00:03:22]} 18. Qxc3 {[%clk
01:12:57]} {[%emt 00:01:01]} dxe5 {[%clk 01:14:51]} {[%emt 00:00:38]} 19. Nb3
{[%clk 01:11:16]} {[%emt 00:02:12]} Nxe4 {[%clk 01:02:04]} {[%emt 00:13:17]} 20.
Qe1 {[%clk 01:11:32]} {[%emt 00:00:13]} Nf6 {[%clk 01:02:16]} {[%emt 00:00:18]}
21. Bg5 {[%clk 01:02:38]} {[%emt 00:09:25]} Ng4 {[%clk 01:00:31]} {[%emt
00:02:15]} 22. Qg3 {[%clk 00:42:00]} {[%emt 00:21:08]} Qc7 {[%clk 00:55:38]}
{[%emt 00:05:23]} 23. Bd2 {[%clk 00:37:48]} {[%emt 00:04:41]} Rec8 {[%clk
00:53:09]} {[%emt 00:02:59]} 24. Bc3 {[%clk 00:35:40]} {[%emt 00:02:38]} a5
{[%clk 00:52:13]} {[%emt 00:01:26]} 25. a3 {[%clk 00:33:52]} {[%emt 00:02:18]}
a4 {[%clk 00:51:02]} {[%emt 00:01:42]} 26. Nd2 {[%clk 00:33:49]} {[%emt
00:00:31]} Bh6 {[%clk 00:46:48]} {[%emt 00:04:45]} 27. Bxg4 {[%clk 00:29:14]}
{[%emt 00:05:05]} Bf4 {[%clk 00:47:07]} {[%emt 00:00:11]} 28. Qe1 {[%clk
00:26:04]} {[%emt 00:03:40]} Bxg4 {[%clk 00:46:58]} {[%emt 00:00:40]} 29. Kb1
{[%clk 00:25:30]} {[%emt 00:01:03]} f6 {[%clk 00:37:28]} {[%emt 00:10:01]} 30.
g3 {[%clk 00:24:12]} {[%emt 00:01:47]} Bh6 {[%clk 00:36:17]} {[%emt 00:01:42]}
31. Qf2 {[%clk 00:20:12]} {[%emt 00:04:29]} Rab8 {[%clk 00:33:49]} {[%emt
00:02:59]} 32. Ka1 {[%clk 00:19:48]} {[%emt 00:00:53]} Rd8 {[%clk 00:31:06]}
{[%emt 00:03:14]} 33. Rc1 {[%clk 00:18:21]} {[%emt 00:01:56]} Qc6 {[%clk
00:26:53]} {[%emt 00:04:43]} 34. Rhf1 {[%clk 00:16:37]} {[%emt 00:02:14]} Qd5
{[%clk 00:26:11]} {[%emt 00:01:12]} 35. Rcd1 {[%clk 00:15:28]} {[%emt
00:01:40]} Rbc8 {[%clk 00:24:13]} {[%emt 00:02:28]} 36. Nf3 {[%clk 00:13:16]}
{[%emt 00:02:41]} Qc4 {[%clk 00:22:56]} {[%emt 00:01:47]} 37. Rxd8+ {[%clk
00:12:31]} {[%emt 00:01:16]} Rxd8 {[%clk 00:23:21]} {[%emt 00:00:05]} 38. Nxe5
{[%clk 00:12:47]} {[%emt 00:00:13]} fxe5 {[%clk 00:23:37]} {[%emt 00:00:14]} 39.
Qf7+ {[%clk 00:12:38]} {[%emt 00:00:39]} Qxf7 {[%clk 00:23:00]} {[%emt
00:00:06]} 0-1